bitfinex-derivatives/quotes_SOLF0:USTF0_20250109
["timestamp","ask_amount","ask_price","bid_price","bid_amount"]
[1736438664855,5.16,192.61,192.51,2.5981]
[1736438665259,2.5974,192.57,192.51,2.5981]
[1736438665662,2.5974,192.57,192.52,2.5979]
[1736438665857,1.5578,192.64,192.51,20.828735]
[1736438666065,5.16,192.63,192.51,20.828735]
[1736438666265,5.16,192.63,192.56,2.5974]
[1736438666266,2.5969,192.61,192.56,2.5974]
[1736438667058,25.988735,192.63,192.48,20.828735]
[1736438667661,5.16,192.63,192.51,20.828735]
[1736438668255,5.16,192.63,192.48,20.828735]
[1736438668461,25.988735,192.63,192.48,20.828735]
[1736438669161,5.16,192.63,192.48,20.828735]
[1736438669361,5.16,192.63,192.51,20.828735]
[1736438670268,2.597,192.6,192.55,2.5975]
[1736438670455,25.988735,192.63,192.48,20.828735]
[1736438670661,25.988735,192.63,192.52,2.5979]
[1736438670859,25.988735,192.63,192.48,20.828735]
[1736438671763,25.988735,192.63,192.52,2.5979]
[1736438672265,25.988735,192.63,192.48,20.828735]
[1736438672471,25.988735,192.63,192.53,2.5978]
[1736438673372,20.828735,192.6,192.47,3.2071]
[1736438673768,2.5978,192.54,192.5,2.5982]
[1736438674275,2.5976,192.56,192.5,2.5982]
[1736438674468,1.4785,192.59,192.47,3.2071]
[1736438675471,20.828735,192.57,192.42,20.828735]
[1736438675668,20.828735,192.54,192.4,6.84130682]
[1736438675873,6.7572,192.53,192.4,6.84130682]
[1736438676174,2.5988,192.47,192.43,2.5991]
[1736438676368,20.828735,192.51,192.4,6.84130682]
[1736438677075,2.5986,192.48,192.4,9.44080682]
[1736438677271,20.828735,192.51,192.4,5.22830682]
[1736438677465,6.7572,192.53,192.36,3.1016]
[1736438677466,20.828735,192.48,192.36,3.1016]
[1736438677977,1.5602,192.5,192.36,23.930335]
[1736438678176,2.5986,192.48,192.36,23.930335]
[1736438678375,1.5602,192.5,192.36,23.930335]
[1736438678883,2.5988,192.47,192.42,2.5993]
[1736438679181,1.5602,192.5,192.36,23.930335]
[1736438679679,20.828735,192.48,192.38,2.5998]
[1736438679880,20.828735,192.48,192.32,1.5172]
[1736438679881,20.828735,192.45,192.32,1.5172]
[1736438681580,1.4972,192.47,192.33,20.828735]
[1736438681776,2.5992,192.43,192.39,2.5997]
[1736438682184,1.4972,192.47,192.32,1.5172]
[1736438682385,1.4972,192.47,192.37,2.5999]
[1736438682780,20.828735,192.45,192.37,2.5999]
[1736438682980,2.5996,192.4,192.32,1.5172]
[1736438683479,20.828735,192.45,192.32,1.5172]
[1736438683782,5.16,192.44,192.32,1.5172]
[1736438683984,6.7711,192.44,192.32,1.5172]
[1736438684178,2.6,192.38,192.33,2.6005]
[1736438684374,6.7711,192.44,192.32,1.5172]
[1736438685382,2.5996,192.41,192.32,1.5172]
[1736438685788,2.5996,192.41,192.35,2.6002]
[1736438686086,2.5996,192.4,192.35,2.6002]
[1736438686385,6.7711,192.44,192.35,2.6003]
[1736438686684,2.6,192.38,192.32,1.5172]
[1736438686885,1.6111,192.44,192.32,1.5172]
[1736438687081,20.828735,192.42,192.33,2.6005]
[1736438687281,2.6002,192.36,192.29,1.623]
[1736438687482,20.828735,192.39,192.25,1.5359]
[1736438688581,20.828735,192.39,192.28,2.6012]
[1736438688781,1.5975,192.38,192.28,2.6012]
[1736438688980,20.828735,192.36,192.25,1.5359]
[1736438689179,20.828735,192.36,192.23,3.0123]
[1736438689488,20.828735,192.3,192.16,1.5625]
[1736438689690,20.828735,192.3,192.21,2.6021]
[1736438689885,20.828735,192.3,192.16,4.6217]
[1736438690080,2.6018,192.25,192.16,4.6217]
[1736438690386,20.828735,192.3,192.16,4.6217]
[1736438691783,2.6014,192.26,192.2,2.602]
[1736438692088,20.828735,192.33,192.17,20.828735]
[1736438692281,30.148735,192.36,192.2,20.828735]
[1736438693686,30.148735,192.36,192.16,4.6217]
[1736438693687,2.6009,192.29,192.23,2.6015]
[1736438693887,20.828735,192.33,192.17,20.828735]
[1736438694186,1.4777,192.32,192.17,20.828735]
[1736438694387,1.4777,192.32,192.2,20.828735]
[1736438694589,30.148735,192.36,192.2,20.828735]
[1736438694981,30.148735,192.36,192.23,20.828735]
[1736438694982,4.16,192.36,192.23,20.828735]
[1736438695183,4.16,192.36,192.26,20.828735]
[1736438695383,4.16,192.36,192.27,3.0227]
[1736438695788,4.16,192.36,192.32,2.6004]
[1736438696290,4.16,192.36,192.27,3.0227]
[1736438696490,4.16,192.36,192.33,2.6003]
[1736438696789,4.16,192.36,192.27,3.0227]
[1736438697188,20.828735,192.3,192.14,20.828735]
[1736438697389,2.6013,192.26,192.16,5.57589933]
[1736438697983,2.601,192.29,192.17,20.828735]
[1736438698177,20.828735,192.3,192.16,5.57589933]
[1736438698383,20.828735,192.3,192.18,2.6022]
[1736438698585,5.16,192.31,192.16,5.57589933]
[1736438698586,2.6019,192.21,192.16,5.57589933]
[1736438698782,20.828735,192.27,192.16,4.5351]
[1736438698980,20.828735,192.27,192.17,2.6025]
[1736438699387,2.6018,192.23,192.17,2.6025]
[1736438699890,2.6018,192.23,192.18,2.6023]
[1736438700591,2.6014,192.25,192.2,2.6019]
[1736438700786,4.6574,192.29,192.16,4.5351]
[1736438700987,5.16,192.3,192.17,20.828735]
[1736438701196,4.16,192.36,192.2,20.828735]
[1736438701693,2.6004,192.33,192.2,20.828735]
[1736438702094,24.988735,192.36,192.2,20.828735]
[1736438702789,4.16,192.36,192.23,20.828735]
[1736438702991,4.16,192.36,192.26,20.828735]
[1736438703197,4.16,192.36,192.29,2.6007]
[1736438703492,4.16,192.36,192.27,3.2244]
[1736438704596,4.16,192.36,192.33,2.6003]
[1736438705495,4.16,192.36,192.3,2.6007]
[1736438705795,4.16,192.36,192.27,3.2244]
[1736438706094,2.6004,192.33,192.27,5.8255]
[1736438706295,4.16,192.36,192.27,3.2244]
[1736438706791,4.16,192.36,192.3,2.6007]
[1736438707495,4.16,192.36,192.27,3.2244]
[1736438707791,4.16,192.36,192.29,20.828735]
[1736438707997,4.16,192.36,192.35,2.6]
[1736438708191,3.1781,192.45,192.31,5.16]
[1736438708390,1.5649,192.45,192.32,1.5056]
[1736438708595,2.599,192.43,192.32,1.5056]
[1736438708794,1.5649,192.45,192.32,1.5056]
[1736438709490,20.828735,192.42,192.32,1.5056]
[1736438709691,1.5649,192.45,192.31,5.16]
[1736438709895,20.828735,192.39,192.31,2.6005]
[1736438710694,20.828735,192.39,192.27,4.73]
[1736438710891,2.5999,192.37,192.27,4.73]
[1736438711295,20.828735,192.39,192.27,4.73]
[1736438712094,2.5999,192.36,192.31,2.6005]
[1736438712690,2.5998,192.37,192.32,2.6004]
[1736438712889,20.828735,192.42,192.27,4.73]
[1736438713090,22.393635,192.45,192.29,20.828735]
[1736438713287,2.5991,192.42,192.37,2.5996]
[1736438713493,22.393635,192.45,192.37,2.5996]
[1736438713900,1.5649,192.45,192.38,2.5996]
[1736438714093,1.5649,192.45,192.27,4.73]
[1736438714094,1.5649,192.45,192.32,20.828735]
[1736438714297,2.5988,192.44,192.32,20.828735]
[1736438714493,2.5988,192.44,192.39,2.5995]
[1736438715093,1.5649,192.45,192.4,2.5993]
[1736438715499,1.5649,192.45,192.29,20.828735]
[1736438716098,20.828735,192.48,192.32,20.828735]
[1736438716498,3.1154,192.5,192.32,20.828735]
[1736438716800,164.57041672,192.54,192.38,20.828735]
[1736438717006,164.57041672,192.54,192.39,4.5723]
[1736438717292,143.74168172,192.54,192.41,20.828735]
[1736438717701,2.5974,192.55,192.41,20.828735]
[1736438717899,1.5516,192.56,192.41,20.828735]
[1736438718696,4.1488,192.56,192.5,2.5979]
[1736438718897,20.828735,192.6,192.44,20.828735]
[1736438719401,2.5971,192.57,192.51,2.5978]
[1736438719900,2.5971,192.57,192.52,2.5977]
[1736438720102,1.5423,192.61,192.47,22.363235]
[1736438720303,1.5423,192.61,192.48,1.5605]
[1736438720495,1.5423,192.61,192.49,1.5747]
[1736438720689,4.1388,192.61,192.49,1.5747]
[1736438720894,20.828735,192.6,192.49,1.5747]
[1736438721600,2.5971,192.57,192.49,1.5747]
[1736438722203,2.5967,192.6,192.55,2.5973]
[1736438722499,1.5423,192.61,192.55,2.5973]
[1736438722700,1.5423,192.61,192.49,1.5747]
[1736438723396,20.828735,192.6,192.52,2.5976]
[1736438723598,20.828735,192.6,192.32,20.828735]
[1736438723803,20.828735,192.6,192.41,25.988735]
[1736438724300,20.828735,192.6,192.44,20.828735]
[1736438724503,1.5423,192.61,192.45,3.1279]
[1736438724702,2.5968,192.59,192.47,20.828735]
[1736438725307,2.597,192.58,192.47,20.828735]
[1736438725803,1.5423,192.61,192.53,2.5975]
[1736438726103,2.5968,192.59,192.47,20.828735]
[1736438726400,1.5423,192.61,192.47,20.828735]
[1736438726599,1.567,192.63,192.56,2.5971]
[1736438727499,2.5966,192.61,192.56,2.5971]
[1736438728300,22.395735,192.63,192.54,2.5974]
[1736438728700,20.828735,192.6,192.49,5.16]
[1736438728901,2.5973,192.56,192.52,2.5977]
[1736438729905,2.5971,192.57,192.53,2.5975]
[1736438730101,20.828735,192.6,192.49,5.16]
[1736438730306,1.567,192.63,192.49,5.16]
[1736438730501,2.5965,192.61,192.53,2.5976]
[1736438730704,2.5965,192.61,192.49,5.16]
[1736438730898,5.14,192.74,192.54,20.828735]
[1736438731098,3.1034,192.71,192.55,4.6494]
[1736438731500,3.1034,192.71,192.57,20.828735]
[1736438731900,3.1034,192.71,192.6,20.828735]
[1736438731901,1.5123,192.71,192.6,20.828735]
[1736438732400,1.5123,192.71,192.68,2.5956]
[1736438732806,1.5123,192.71,192.63,2.5962]
[1736438733003,1.5123,192.71,192.6,20.828735]
[1736438733204,2.5955,192.69,192.57,25.968735]
[1736438733508,20.828735,192.7,192.55,9.7894]
[1736438734009,1.5123,192.71,192.57,20.828735]
[1736438734802,4.1075,192.71,192.66,2.5958]
[1736438735004,22.324435,192.76,192.6,20.828735]
[1736438735309,1.5579,192.79,192.63,20.828735]
[1736438735508,1.5579,192.79,192.64,8.2301]
[1736438735899,1.5579,192.79,192.65,1.5377]
[1736438736100,20.828735,192.76,192.64,3.0901]
[1736438736304,20.828735,192.76,192.6,20.828735]
[1736438736305,20.828735,192.73,192.57,20.828735]
[1736438736498,20.828735,192.73,192.58,1.54]
[1736438736706,2.5957,192.68,192.62,2.5963]
[1736438736899,2.5957,192.68,192.58,1.54]
[1736438737504,2.5959,192.66,192.58,1.54]
[1736438737805,20.828735,192.7,192.58,1.54]
[1736438738008,20.828735,192.7,192.64,2.5961]
[1736438738207,1.5053,192.74,192.6,20.828735]
[1736438738809,27.526635,192.79,192.63,20.828735]
[1736438739006,27.526635,192.79,192.64,3.0853]
[1736438739200,22.386635,192.79,192.64,3.0853]
[1736438739702,2.5945,192.76,192.7,2.5952]
[1736438740604,24.980835,192.79,192.72,2.595]
[1736438740909,4.1521,192.79,192.66,20.828735]
[1736438741106,4.1521,192.79,192.67,1.5263]
[1736438741500,4.1521,192.79,192.7,2.5952]
[1736438741699,1.5579,192.79,192.67,1.5263]
[1736438741899,2.5943,192.78,192.67,1.5263]
[1736438742100,2.5943,192.78,192.7,2.5953]
[1736438742311,2.5944,192.77,192.67,1.5263]
[1736438742704,1.5579,192.79,192.72,2.595]
[1736438742900,4.1521,192.79,192.67,1.5263]
[1736438743406,2.5943,192.78,192.67,1.5263]
[1736438743604,1.5579,192.79,192.67,1.5263]
[1736438744310,4.152,192.79,192.67,1.5263]
[1736438744807,4.152,192.79,192.73,2.5948]
[1736438745013,22.386635,192.79,192.67,1.5263]
[1736438745905,2.5947,192.75,192.71,2.5952]
[1736438746410,22.386635,192.79,192.67,1.5263]
[1736438746411,2.5944,192.77,192.72,2.595]
[1736438746609,1.5579,192.79,192.67,1.5263]
[1736438746812,22.386635,192.79,192.67,1.5263]
[1736438747411,22.386635,192.79,192.71,2.5952]
[1736438747605,22.386635,192.79,192.67,1.5263]
[1736438747913,2.5946,192.76,192.67,1.5263]
[1736438749205,22.386635,192.79,192.67,1.5263]
[1736438749410,20.828735,192.76,192.64,3.0853]
[1736438749607,2.5953,192.7,192.64,1.6079]
[1736438750008,20.828735,192.73,192.64,1.6079]
[1736438750206,2.595,192.72,192.64,1.6079]
[1736438750611,22.364035,192.76,192.64,1.6079]
[1736438750912,2.5949,192.74,192.64,1.6079]
[1736438751112,2.5949,192.74,192.69,2.5954]
[1736438751611,1.5579,192.79,192.74,2.5948]
[1736438751814,1.5579,192.79,192.66,20.828735]
[1736438752010,22.309235,192.83,192.69,20.828735]
[1736438752210,2.5941,192.8,192.75,2.5946]
[1736438752613,1.4805,192.83,192.7,1.4696]
[1736438752814,2.5937,192.82,192.7,1.4696]
[1736438753209,2.5937,192.82,192.76,2.5944]
[1736438753415,2.5937,192.82,192.7,1.4696]
[1736438753914,2.5939,192.81,192.7,1.4696]
[1736438754516,2.5939,192.81,192.76,2.5945]
[1736438754812,1.4968,192.85,192.72,20.828735]
[1736438755008,1.4968,192.85,192.73,1.6183]
[1736438755714,2.5936,192.83,192.78,2.5942]
[1736438756510,1.4968,192.85,192.73,1.6183]
[1736438756706,4.0901,192.85,192.73,1.6183]
[1736438757515,4.0901,192.85,192.79,2.594]
[1736438757819,1.4968,192.85,192.73,1.6183]
[1736438758312,22.325535,192.85,192.7,1.4696]
[1736438759211,2.5938,192.82,192.77,2.5943]
[1736438759808,1.4968,192.85,192.7,1.4696]
[1736438760118,1.83338,192.89,192.75,20.828735]
[1736438760313,1.83338,192.89,192.76,1.5103]
[1736438760915,0.21068,192.89,192.86,2.5931]
[1736438761509,2.5926,192.91,192.86,2.5931]
[1736438761913,1.5797,192.92,192.86,2.5931]
[1736438762119,22.408435,192.92,192.79,1.5582]
[1736438762619,22.408435,192.92,192.76,1.5103]
[1736438762620,2.5933,192.85,192.8,2.5939]
[1736438763019,22.408435,192.92,192.76,1.5103]
[1736438763220,22.408435,192.92,192.82,2.5937]
[1736438763522,22.408435,192.92,192.76,1.5103]
[1736438763709,22.408435,192.92,192.84,2.5933]
[1736438763710,2.5928,192.89,192.84,2.5933]
[1736438763910,22.408435,192.92,192.84,2.5933]
[1736438764519,22.408435,192.92,192.76,1.5103]
[1736438764911,20.828735,192.89,192.76,1.5103]
[1736438765514,2.5936,192.83,192.79,2.594]
[1736438765722,20.828735,192.89,192.79,2.594]
[1736438765922,20.828735,192.89,192.73,1.5426]
[1736438766123,2.5939,192.81,192.73,1.5426]
[1736438766323,20.828735,192.89,192.73,1.5426]
[1736438766730,2.5934,192.85,192.73,1.5426]
[1736438766915,20.828735,192.89,192.73,1.5426]
[1736438767121,2.5935,192.84,192.8,2.5938]
[1736438767320,20.828735,192.89,192.73,1.5426]
[1736438767728,20.828735,192.86,192.73,1.5426]
[1736438768025,3.0493,192.85,192.73,1.5426]
[1736438768224,2.5938,192.82,192.78,2.5941]
[1736438768421,3.0493,192.85,192.78,2.5941]
[1736438768625,3.0493,192.85,192.73,1.5426]
[1736438768925,2.5935,192.84,192.73,1.5426]
[1736438769125,148.88168172,192.9,192.75,20.828735]
[1736438769326,5.14,192.9,192.75,20.828735]
[1736438769518,2.5931,192.87,192.83,2.5934]
[1736438769720,145.22098172,192.91,192.75,20.828735]
[1736438769920,1.4793,192.91,192.75,20.828735]
[1736438770121,2.5938,192.81,192.78,2.5941]
[1736438770516,1.4793,192.91,192.73,1.5426]
[1736438770517,20.828735,192.86,192.73,1.5426]
[1736438770719,1.6094,192.85,192.69,23.930035]
[1736438770921,20.828735,192.83,192.69,1.5613]
[1736438771124,2.5943,192.78,192.74,2.5948]
[1736438771619,3.0945,192.82,192.74,2.5948]
[1736438772521,2.5944,192.78,192.74,2.5948]
[1736438773025,2.5947,192.75,192.68,1.4853]
[1736438773225,20.828735,192.8,192.68,1.4853]
[1736438773518,2.5947,192.75,192.71,2.5952]
[1736438774125,2.5948,192.74,192.7,2.5953]
[1736438774428,20.828735,192.8,192.66,58.89189347]
[1736438775425,2.5947,192.75,192.7,2.5953]
[1736438775622,2.5947,192.75,192.66,58.89189347]
[1736438775826,20.828735,192.8,192.66,58.89189347]
[1736438776023,146.83618172,192.82,192.66,79.72062847]
[1736438776425,3.0945,192.82,192.66,79.72062847]
[1736438777126,3.0945,192.82,192.69,20.828735]
[1736438777331,1.5235,192.82,192.69,20.828735]
[1736438777831,2.5939,192.81,192.69,20.828735]
[1736438778328,1.5235,192.82,192.66,79.72062847]
[1736438778928,1.5235,192.82,192.66,20.828735]
[1736438779623,2.5942,192.78,192.66,20.828735]
[1736438780229,2.5942,192.78,192.73,2.5948]
[1736438781325,1.5235,192.82,192.73,2.5948]
[1736438781520,2.5944,192.77,192.73,2.5948]
[1736438781723,1.5235,192.82,192.66,20.828735]
[1736438781929,1.5235,192.82,192.74,2.5947]
[1736438782131,1.5235,192.82,192.66,20.828735]
[1736438782328,1.5235,192.82,192.72,2.595]
[1736438782532,1.5235,192.82,192.69,20.828735]
[1736438782730,2.5942,192.79,192.69,20.828735]
[1736438783031,2.5942,192.79,192.74,2.5947]
[1736438783233,2.5942,192.79,192.69,20.828735]
[1736438783532,2.594,192.8,192.75,2.5945]
[1736438783832,2.594,192.8,192.7,12.92443073]
[1736438784127,1.5235,192.82,192.7,12.92443073]
[1736438785034,2.5945,192.77,192.7,12.92443073]
[1736438785331,1.5235,192.82,192.67,12.92443073]
[1736438785332,12.92443073,192.8,192.67,12.92443073]
[1736438785730,12.92443073,192.77,192.64,12.92443073]
[1736438786431,12.92443073,192.8,192.67,12.92443073]
[1736438786622,2.5945,192.76,192.67,12.92443073]
[1736438787228,1.5235,192.82,192.7,12.92443073]
[1736438787431,1.5235,192.82,192.71,1.579]
[1736438788034,2.5941,192.79,192.71,1.579]
[1736438788235,1.5235,192.82,192.74,2.5947]
[1736438788425,1.5235,192.82,192.71,1.579]
[1736438788626,2.5941,192.79,192.73,2.5949]
[1736438788833,1.5235,192.82,192.73,2.5949]
[1736438789132,1.5235,192.82,192.71,1.579]
[1736438789332,2.5944,192.77,192.74,2.5948]
[1736438789728,2.5947,192.75,192.71,2.5951]
[1736438790126,12.92443073,192.77,192.65,5.14]
[1736438790531,12.92443073,192.8,192.73,2.5949]
[1736438790732,12.92443073,192.8,192.67,12.92443073]
[1736438791140,2.5947,192.75,192.67,12.92443073]
[1736438792133,2.5947,192.75,192.71,2.5951]
[1736438792537,2.5945,192.76,192.67,12.92443073]
[1736438793548,2.5947,192.75,192.7,2.5952]
[1736438793738,12.92443073,192.77,192.64,1.5214]
[1736438794037,12.92443073,192.74,192.64,1.5214]
[1736438794438,2.5951,192.72,192.68,2.5956]
[1736438794639,12.92443073,192.8,192.65,12.92443073]
[1736438795047,2.5945,192.76,192.72,2.595]
[1736438795947,2.5946,192.75,192.71,2.5951]
[1736438796242,12.92443073,192.77,192.65,12.92443073]
[1736438796441,12.92443073,192.77,192.64,1.5214]
[1736438796645,2.595,192.73,192.69,2.5954]
[1736438797345,12.92443073,192.77,192.66,12.92443073]
[1736438797546,12.92443073,192.77,192.64,1.5214]
[1736438797746,2.5949,192.73,192.69,2.5953]
[1736438798343,12.92443073,192.77,192.64,1.5214]
[1736438798543,2.5953,192.71,192.67,2.5957]
[1736438800054,12.92443073,192.74,192.64,1.5214]
[1736438800254,12.92443073,192.74,192.63,1.6117]
[1736438800448,12.92443073,192.71,192.61,58.90923051]
[1736438800650,2.5962,192.64,192.61,58.90923051]
[1736438801354,12.92443073,192.68,192.61,58.90923051]
[1736438801656,12.92443073,192.68,192.61,2.5965]
[1736438802358,2.5961,192.65,192.61,2.5965]
[1736438802862,2.5959,192.66,192.62,2.5963]
[1736438803054,12.92443073,192.68,192.62,2.5963]
[1736438803460,2.596,192.65,192.62,2.5963]
[1736438803764,12.92443073,192.68,192.62,2.5963]
[1736438803956,2.5959,192.66,192.62,2.5963]
[1736438804353,1.576,192.72,192.58,18.14759507]
[1736438804660,1.5022,192.73,192.61,12.92443073]
[1736438804962,5.14,192.77,192.64,12.92443073]
[1736438805553,2.595,192.73,192.69,2.5953]
[1736438806064,14.44643073,192.78,192.67,12.92443073]
[1736438806456,2.5944,192.77,192.67,12.92443073]
[1736438806658,1.522,192.78,192.67,12.92443073]
[1736438806858,1.4752,192.83,192.7,12.92443073]
[1736438807057,3.013,192.83,192.7,12.92443073]
[1736438807459,1.5378,192.83,192.73,12.92443073]
[1736438807958,2.5937,192.82,192.77,2.5943]
[1736438808156,1.5378,192.83,192.7,14.47503073]
[1736438808355,2.5944,192.77,192.73,2.5949]
[1736438808561,12.92443073,192.81,192.7,1.5506]
[1736438808968,2.5942,192.79,192.75,2.5946]
[1736438809164,1.5378,192.83,192.73,12.92443073]
[1736438810767,1.5378,192.83,192.72,12.92443073]
[1736438810963,13.11995073,192.84,192.75,12.92443073]
[1736438810964,2.78892,192.84,192.75,12.92443073]
[1736438811466,2.5934,192.84,192.75,12.92443073]
[1736438811663,2.5934,192.84,192.79,2.594]
[1736438812163,2.5936,192.83,192.79,2.594]
[1736438813768,1.5341,192.9,192.77,12.92443073]
[1736438814070,1.5895,192.92,192.8,12.92443073]
[1736438814364,2.5928,192.89,192.8,12.92443073]
[1736438815267,2.5928,192.89,192.84,2.5933]
[1736438815966,1.5895,192.92,192.8,12.92443073]
[1736438817066,2.5929,192.88,192.84,2.5934]
[1736438817265,2.5929,192.88,192.8,12.92443073]
[1736438817466,12.92443073,192.9,192.78,1.4746]
[1736438818266,12.92443073,192.87,192.78,1.4746]
[1736438818563,12.92443073,192.87,192.78,2.5941]
[1736438818971,2.5938,192.82,192.73,17.64083073]
[1736438819165,12.92443073,192.84,192.76,2.5945]
[1736438819369,12.92443073,192.84,192.73,17.64083073]
[1736438819569,12.92443073,192.84,192.76,2.5944]
[1736438820172,2.594,192.8,192.76,2.5944]
[1736438820372,12.92443073,192.81,192.73,3.1141]
[1736438820572,2.5946,192.76,192.67,12.92443073]
[1736438820871,12.92443073,192.81,192.67,12.92443073]
[1736438821372,12.92443073,192.81,192.71,2.5951]
[1736438821572,12.92443073,192.81,192.67,12.92443073]
[1736438822070,2.5945,192.77,192.72,2.595]
[1736438822271,12.92443073,192.81,192.67,12.92443073]
[1736438822662,2.5943,192.78,192.73,2.5948]
[1736438823068,12.92443073,192.81,192.67,12.92443073]
[1736438823269,2.5944,192.77,192.71,2.5951]
[1736438823467,12.92443073,192.81,192.67,12.92443073]
[1736438824071,2.5945,192.77,192.67,12.92443073]
[1736438824571,2.5946,192.76,192.72,2.5949]
[1736438826069,12.92443073,192.81,192.72,2.5949]
[1736438826266,1.5262,192.83,192.73,12.92443073]
[1736438826668,1.5262,192.83,192.74,1.4793]
[1736438826866,6.7371,192.89,192.8,2.5938]
[1736438827071,6.7371,192.89,192.76,12.92443073]
[1736438827072,1.6171,192.89,192.76,12.92443073]
[1736438827472,1.6171,192.89,192.74,3.0016]
[1736438827473,1.6171,192.89,192.82,2.5937]
[1736438827673,1.6171,192.89,192.79,12.92443073]
[1736438827865,2.593,192.87,192.79,12.92443073]
[1736438828071,2.593,192.87,192.83,2.5934]
[1736438829577,1.6171,192.89,192.76,12.92443073]
[1736438829774,12.92443073,192.87,192.76,12.92443073]
[1736438830174,12.92443073,192.87,192.8,2.5939]
[1736438830175,2.5937,192.83,192.8,2.5939]
[1736438830370,2.5937,192.83,192.76,12.92443073]
[1736438830771,13.13132073,192.87,192.74,3.0016]
[1736438830975,13.13132073,192.87,192.72,5.12]
[1736438830976,12.92443073,192.84,192.72,5.12]
[1736438831274,12.92443073,192.81,192.69,4.5601]
[1736438831479,1.5642,192.8,192.69,4.5601]
[1736438831978,1.5642,192.8,192.7,12.92443073]
[1736438832471,4.1583,192.8,192.76,2.5945]
[1736438832674,1.5642,192.8,192.69,4.5601]
[1736438832977,2.5944,192.77,192.72,2.5949]
[1736438833178,14.48863073,192.8,192.69,4.5601]
[1736438833375,14.48863073,192.8,192.69,3.0768]
[1736438833579,14.48863073,192.8,192.73,2.5949]
[1736438835579,2.5945,192.77,192.73,2.5949]
[1736438835779,14.48863073,192.8,192.73,2.5949]
[1736438836280,2.5943,192.78,192.73,2.5949]
[1736438836680,14.48863073,192.8,192.73,2.5949]
[1736438836874,14.48863073,192.8,192.72,2.595]
[1736438837074,12.92443073,192.77,192.66,12.92443073]
[1736438837475,12.92443073,192.74,192.67,2.5956]
[1736438837674,12.92443073,192.74,192.63,17.54883073]
[1736438837976,12.92443073,192.78,192.69,2.5954]
[1736438838173,12.92443073,192.78,192.66,12.92443073]
[1736438838373,2.5949,192.73,192.63,17.54883073]
[1736438838580,5.12,192.74,192.67,2.5956]
[1736438838883,5.12,192.74,192.63,17.54883073]
[1736438838884,2.5951,192.72,192.63,17.54883073]
[1736438839480,2.5953,192.71,192.63,17.54883073]
[1736438839879,5.12,192.74,192.63,17.54883073]
[1736438840677,12.92443073,192.72,192.63,3.1054]
[1736438840878,12.92443073,192.72,192.6,12.92443073]
[1736438841082,12.92443073,192.69,192.57,17.79213073]
[1736438841783,12.92443073,192.69,192.63,2.5962]
[1736438841983,12.92443073,192.69,192.57,17.79213073]
[1736438842781,2.5961,192.65,192.61,2.5965]
[1736438843686,2.5962,192.64,192.6,2.5966]
[1736438843886,18.04443073,192.66,192.57,3.2359]
[1736438844087,5.12,192.66,192.62,2.5963]
[1736438844281,5.12,192.66,192.57,16.16033073]
[1736438844478,1.6191,192.71,192.6,12.92443073]
[1736438844679,2.5953,192.7,192.6,12.92443073]
[1736438845286,2.595,192.73,192.63,12.92443073]
[1736438845488,12.92443073,192.75,192.63,12.92443073]
[1736438845988,2.5951,192.72,192.68,2.5955]
[1736438846491,2.5951,192.72,192.63,12.92443073]
[1736438846690,2.5951,192.72,192.69,2.5954]
[1736438847292,16.04633073,192.77,192.71,2.5951]
[1736438847492,3.1219,192.77,192.66,12.92443073]
[1736438848585,1.5673,192.84,192.69,12.92443073]
[1736438848790,12.92443073,192.82,192.69,12.92443073]
[1736438848982,2.594,192.8,192.76,2.5945]